bitfinex/quotes_SOLUSD_20241031
["timestamp","ask_amount","ask_price","bid_price","bid_amount"]
[1730349803860,10.18472998,175.44,175.37,29.478984]
[1730349803861,10.18472998,175.43,175.37,33.96161398]
[1730349804274,10.18472998,175.43,175.38,10.18472998]
[1730349805045,10.18472998,175.43,175.37,29.478984]
[1730349805250,5.7004,175.43,175.39,10.18472998]
[1730349807372,5.7004,175.43,175.4,10.18472998]
[1730349808366,5.6999,175.44,175.4,10.18472998]
[1730349812587,5.6996,175.45,175.4,10.18472998]
[1730349814160,5.6996,175.45,175.39,10.18472998]
[1730349814161,15.88432998,175.45,175.39,10.18472998]
[1730349814361,10.18472998,175.44,175.39,10.18472998]
[1730349814563,15.88482998,175.44,175.39,10.18472998]
[1730349822482,15.88482998,175.44,175.38,15.88632998]
[1730349829570,15.88482998,175.44,175.39,10.18472998]
[1730349832187,15.88482998,175.44,175.38,15.88632998]
[1730349834588,15.88482998,175.44,175.39,10.18472998]
[1730349835589,10.18472998,175.45,175.39,10.18472998]
[1730349835890,15.88432998,175.45,175.39,10.18472998]
[1730349836688,15.88432998,175.45,175.38,15.88632998]
[1730349839088,15.88432998,175.45,175.38,5.7016]
[1730349841596,5.7002,175.43,175.38,5.7016]
[1730349842090,5.7002,175.43,175.38,15.88632998]
[1730349842586,5.7002,175.43,175.39,10.18472998]
[1730349842812,5.6999,175.44,175.39,10.18472998]
[1730349843195,10.78000548,175.46,175.39,10.18472998]
[1730349843491,5.6996,175.45,175.4,10.18472998]
[1730349843870,15.88432998,175.45,175.4,10.18472998]
[1730349844990,5.6996,175.45,175.41,10.18472998]
[1730349845312,6.2945755,175.46,175.42,10.18472998]
[1730349845501,16.47930548,175.46,175.41,10.18472998]
[1730349846093,6.2945755,175.46,175.42,10.18472998]
[1730349846994,16.47930548,175.46,175.41,10.18472998]
[1730349850592,16.47930548,175.46,175.42,10.18472998]
[1730349850593,6.2945755,175.46,175.42,10.18472998]
[1730349851499,6.2945755,175.46,175.43,10.18472998]
[1730349852600,6.2945755,175.46,175.42,10.18472998]
[1730349853102,10.18472998,175.45,175.4,24.43782998]
[1730349854204,10.18472998,175.45,175.4,30.13902998]
[1730349854395,16.47930548,175.46,175.41,10.18472998]
[1730349855700,6.2945755,175.46,175.42,10.18472998]
[1730349855902,6.2945755,175.46,175.4,19.9543]
[1730349855903,16.47930548,175.46,175.41,10.18472998]
[1730349862295,6.2945755,175.46,175.42,10.18472998]
[1730349864514,6.2945755,175.46,175.41,15.88562998]
[1730349865611,10.18472998,175.45,175.4,24.43782998]
[1730349866389,16.47930548,175.46,175.41,10.18472998]
[1730349873923,6.2945755,175.46,175.41,10.18472998]
[1730349875013,16.47930548,175.46,175.41,10.18472998]
[1730349875323,6.2945755,175.46,175.41,10.18472998]
[1730349875515,6.2945755,175.46,175.41,15.88542998]
[1730349876023,16.47930548,175.46,175.41,15.88542998]
[1730349879826,6.2945755,175.46,175.41,15.88542998]
[1730349880040,6.2945755,175.46,175.42,10.18472998]
[1730349882541,6.2945755,175.46,175.41,15.88552998]
[1730349883046,0.5952755,175.46,175.42,10.18472998]
[1730349885328,0.5952755,175.46,175.42,15.88512998]
[1730349885829,0.5952755,175.46,175.43,10.18472998]
[1730349888549,0.5952755,175.46,175.42,10.18472998]
[1730349888736,10.78000548,175.46,175.41,10.18472998]
[1730349889046,0.5952755,175.46,175.42,10.18472998]
[1730349889630,10.18472998,175.45,175.4,10.18472998]
[1730349890033,16.47930548,175.46,175.4,10.18472998]
[1730349890666,6.2945755,175.46,175.42,10.18472998]
[1730349890862,0.5952755,175.46,175.42,15.88522998]
[1730349894156,0.5952755,175.46,175.41,10.18472998]
[1730349895458,0.5952755,175.46,175.42,5.7006]
[1730349895756,0.5952755,175.46,175.43,10.18472998]
[1730349899345,0.5952755,175.46,175.42,10.18472998]
[1730349901738,0.5952755,175.46,175.42,15.88492998]
[1730349902555,10.78000548,175.46,175.41,30.13722998]
[1730349903550,10.18472998,175.43,175.37,10.18472998]
[1730349903754,10.18472998,175.42,175.37,10.18472998]
[1730349904738,10.18472998,175.42,175.37,15.88662998]
[1730349906066,27.544,175.44,175.4,10.18472998]
[1730349906271,10.18472998,175.43,175.38,10.18472998]
[1730349906638,10.18472998,175.43,175.37,10.18472998]
[1730349907666,15.88492998,175.43,175.38,5.7019]
[1730349910377,10.18472998,175.42,175.38,5.7019]
[1730349911465,15.88492998,175.43,175.38,5.7019]
[1730349913048,10.18472998,175.42,175.37,10.18472998]
[1730349913260,15.88492998,175.43,175.37,10.18472998]
[1730349913565,15.88492998,175.43,175.38,10.18472998]
[1730349913766,15.88492998,175.43,175.38,15.88652998]
[1730349914767,10.18472998,175.42,175.37,10.18472998]
[1730349915565,15.88492998,175.43,175.38,10.18472998]
[1730349916272,15.88492998,175.43,175.38,15.88652998]
[1730349917447,10.18472998,175.42,175.37,10.18472998]
[1730349918171,15.88492998,175.43,175.38,10.18472998]
[1730349918862,15.88492998,175.43,175.38,15.88652998]
[1730349921672,10.18472998,175.42,175.37,10.18472998]
[1730349921865,10.18472998,175.42,175.36,24.44102998]
[1730349922061,10.18472998,175.39,175.36,14.2563]
[1730349922450,10.18472998,175.37,175.34,5.7032]
[1730349922663,10.18472998,175.38,175.34,5.7032]
[1730349925078,85.88602998,175.4,175.34,10.18472998]
[1730349925446,10.18472998,175.39,175.34,10.18472998]
[1730349926175,10.18472998,175.39,175.34,15.88762998]
[1730349929948,85.88602998,175.4,175.34,15.88762998]
[1730349930776,85.88562998,175.42,175.36,10.18472998]
[1730349931077,85.88562998,175.42,175.37,10.18472998]
[1730349931450,85.88562998,175.42,175.36,10.18472998]
[1730349931654,10.18472998,175.41,175.36,10.18472998]
[1730349932459,10.18472998,175.41,175.36,15.88702998]
[1730349936056,85.88562998,175.42,175.37,10.18472998]
[1730349937756,10.18472998,175.43,175.38,10.18472998]
[1730349939455,10.18472998,175.43,175.38,15.88632998]
[1730349941775,15.88502998,175.43,175.38,15.88632998]
[1730349942074,10.18472998,175.41,175.38,5.7016]
[1730349942854,10.18472998,175.41,175.36,10.18472998]
[1730349943055,15.88582998,175.41,175.36,10.18472998]
[1730349943276,15.88582998,175.41,175.35,10.18472998]
[1730349944380,10.18472998,175.4,175.35,10.18472998]
[1730349944565,10.18472998,175.4,175.35,15.88742998]
[1730349945578,15.88582998,175.41,175.36,10.18472998]
[1730349951068,10.18472998,175.4,175.35,10.18472998]
[1730349954085,10.18472998,175.4,175.35,15.88732998]
[1730349954495,10.18472998,175.39,175.35,5.7026]
[1730349956975,10.18472998,175.39,175.34,10.18472998]
[1730349956976,5.7019,175.38,175.34,10.18472998]
[1730349957170,10.18472998,175.37,175.33,19.9623]
[1730349957369,10.18472998,175.35,175.31,5.7041]
[1730349960488,10.18472998,175.34,175.3,14.2612]
[1730349961600,10.18472998,175.34,175.3,19.9657]
[1730349968192,7.17030798,175.34,175.3,19.9657]
[1730349970416,15.88752998,175.35,175.3,19.9657]
[1730349972284,15.88752998,175.35,175.3,10.18472998]
[1730349972485,10.18472998,175.36,175.31,10.18472998]
[1730349973179,32.44972998,175.39,175.34,10.18472998]
[1730349973402,15.88592998,175.4,175.36,10.18472998]
[1730349973700,15.88592998,175.4,175.35,10.18472998]
[1730349975701,15.88592998,175.4,175.35,15.88752998]
[1730349976093,10.18472998,175.41,175.36,10.18472998]
[1730349976295,15.88572998,175.41,175.36,10.18472998]
[1730349976683,15.88572998,175.41,175.36,15.88712998]
[1730349979007,15.88572998,175.41,175.36,10.18472998]
[1730349980011,15.88572998,175.41,175.35,30.14462998]
[1730349980012,10.18472998,175.4,175.35,30.14462998]
[1730349983292,15.88572998,175.41,175.36,10.18472998]
[1730349987516,5.701,175.41,175.37,10.18472998]
[1730349987816,25.89652998,175.43,175.38,10.18472998]
[1730349989401,31.59682998,175.43,175.38,15.88642998]
[1730349997630,16.39522998,175.44,175.39,10.18472998]
[1730349997933,15.88442998,175.45,175.4,10.18472998]
[1730349998099,10.18472998,175.45,175.4,10.18472998]
[1730349998498,15.88452998,175.45,175.4,10.18472998]
[1730349999031,10.18472998,175.44,175.39,10.18472998]
[1730349999724,15.88462998,175.44,175.39,15.88612998]
[1730350000702,10.18472998,175.43,175.38,10.18472998]
[1730350001909,15.88462998,175.44,175.39,15.88612998]
[1730350005028,10.18472998,175.44,175.39,30.14002998]
[1730350007230,10.18472998,175.43,175.38,10.18472998]
[1730350007436,10.18472998,175.42,175.37,10.18472998]
[1730350008523,10.18472998,175.42,175.37,15.88672998]
[1730350010446,10.18472998,175.38,175.33,10.18472998]
[1730350010733,10.18472998,175.37,175.31,10.18472998]
[1730350011311,10.18472998,175.36,175.31,10.18472998]
[1730350011629,10.18472998,175.37,175.32,10.18472998]
[1730350011830,10.18472998,175.38,175.32,10.18472998]
[1730350012027,10.18472998,175.38,175.33,5.7035]
[1730350013948,10.18472998,175.35,175.31,5.7039]
[1730350014119,10.18472998,175.36,175.31,15.88862998]
[1730350015453,10.18472998,175.36,175.31,5.7039]
[1730350015644,10.18472998,175.35,175.31,5.7039]
[1730350016021,10.18472998,175.32,175.28,5.95247406]
[1730350016222,85.1744,175.36,175.26,10.18472998]
[1730350016223,10.18472998,175.31,175.26,10.18472998]
[1730350016420,70.0,175.34,175.26,10.18472998]
[1730350016421,10.18472998,175.32,175.27,10.18472998]
[1730350017437,10.18472998,175.32,175.27,15.88992998]
[1730350020927,10.18472998,175.29,175.26,14.2645]
[1730350021246,10.18472998,175.29,175.21,21.08190252]
[1730350021247,10.18472998,175.28,175.23,15.89142998]
[1730350021541,10.18472998,175.31,175.26,10.18472998]
[1730350024338,15.88892998,175.31,175.26,10.18472998]
[1730350024743,16.23912998,175.32,175.27,5.7054]
[1730350025051,6.0544,175.32,175.28,10.18472998]
[1730350025349,10.18472998,175.33,175.28,10.18472998]
[1730350025851,10.18472998,175.32,175.27,30.15382998]
[1730350028336,15.1744,175.36,175.31,10.18472998]
[1730350028337,95.35912998,175.36,175.31,10.18472998]
[1730350028528,10.18472998,175.35,175.3,10.18472998]
[1730350028733,10.18472998,175.34,175.29,10.18472998]
[1730350028932,10.18472998,175.34,175.28,33.96161398]
[1730350029133,10.18472998,175.33,175.28,10.18472998]
[1730350029340,10.18472998,175.33,175.27,10.18472998]
[1730350029648,10.18472998,175.31,175.27,5.7052]
[1730350030852,10.18472998,175.32,175.27,10.18472998]
[1730350032032,10.18472998,175.32,175.27,15.88982998]
[1730350032240,5.7037,175.33,175.29,10.18472998]
[1730350034054,10.18472998,175.31,175.26,10.18472998]
[1730350034258,10.18472998,175.31,175.24,5.7064]
[1730350034259,15.88842998,175.33,175.27,10.18472998]
[1730350034753,25.35912998,175.36,175.31,10.18472998]
[1730350035331,25.35912998,175.36,175.32,5.7038]
[1730350035851,15.1744,175.36,175.32,15.88852998]
[1730350036237,22.14322998,175.37,175.32,15.88852998]
[1730350038733,10.18472998,175.33,175.27,10.18472998]
[1730350038948,10.18472998,175.33,175.27,15.89012998]
[1730350039147,10.18472998,175.33,175.28,10.18472998]
[1730350039559,7.68400987,175.36,175.32,10.18472998]
[1730350039761,10.18472998,175.35,175.3,10.18472998]
[1730350040833,10.18472998,175.34,175.29,10.18472998]
[1730350041028,10.18472998,175.3,175.25,10.18472998]
[1730350041336,10.18472998,175.31,175.26,10.18472998]
[1730350041538,10.18472998,175.31,175.24,19.972]
[1730350041539,25.49652998,175.34,175.29,10.18472998]
[1730350042442,31.19972998,175.34,175.29,10.18472998]
[1730350043736,31.19972998,175.34,175.28,10.18472998]
[1730350045042,10.18472998,175.33,175.28,15.88972998]
[1730350045245,10.18472998,175.35,175.3,10.18472998]
[1730350045478,10.18472998,175.36,175.3,10.18472998]
[1730350045646,10.18472998,175.35,175.3,10.18472998]
[1730350046552,10.18472998,175.35,175.3,15.88902998]
[1730350047453,10.18472998,175.34,175.3,5.7043]
[1730350047651,10.18472998,175.35,175.3,10.18472998]
[1730350048155,15.88732998,175.36,175.3,10.18472998]
[1730350048363,16.44102998,175.37,175.32,10.18472998]
[1730350048544,6.2563,175.37,175.32,10.18472998]
[1730350049065,16.44102998,175.37,175.32,10.18472998]
[1730350050464,10.18472998,175.33,175.27,10.18472998]
[1730350050651,10.18472998,175.32,175.27,10.18472998]
[1730350051051,10.18472998,175.32,175.26,10.18472998]
[1730350051464,10.18472998,175.32,175.27,15.89002998]
[1730350052253,10.18472998,175.32,175.26,14.2641]
[1730350052254,10.18472998,175.31,175.26,10.18472998]
[1730350052461,10.18472998,175.3,175.25,10.18472998]
[1730350053065,10.18472998,175.31,175.26,10.18472998]
[1730350053464,10.18472998,175.3,175.25,10.18472998]
[1730350054669,10.18472998,175.3,175.25,15.89052998]
[1730350055258,31.72562998,175.32,175.26,10.18472998]
[1730350056380,10.18472998,175.31,175.26,10.18472998]
[1730350056560,10.18472998,175.31,175.26,15.89032998]
[1730350057272,6.2895,175.3,175.25,10.18472998]
[1730350057473,10.18472998,175.26,175.22,14.2677]
[1730350057777,10.18472998,175.24,175.2,5.7077]
[1730350058070,70.0,175.26,175.18,14.2709]
[1730350058071,10.18472998,175.23,175.18,30.16392998]
[1730350058854,10.18472998,175.24,175.18,30.16392998]
[1730350061176,10.18472998,175.23,175.18,30.16392998]
[1730350063674,10.18472998,175.21,175.16,10.18472998]
[1730350063852,10.18472998,175.22,175.16,30.16612998]
[1730350064054,10.18472998,175.22,175.17,10.18472998]
[1730350065061,10.18472998,175.22,175.18,5.7084]
[1730350067661,75.7065,175.24,175.18,5.7084]
[1730350067662,10.18472998,175.23,175.18,5.7084]
[1730350068368,10.18472998,175.22,175.18,5.7084]
[1730350068559,10.18472998,175.23,175.18,5.7084]
[1730350068968,10.18472998,175.21,175.16,10.18472998]
[1730350069469,10.18472998,175.22,175.17,10.18472998]
[1730350070376,10.18472998,175.22,175.18,5.7084]
[1730350070880,85.89182998,175.22,175.17,19.9802]
[1730350071260,10.18472998,175.2,175.17,19.9802]
[1730350072055,10.18472998,175.2,175.17,14.2715]
[1730350072868,15.89242998,175.21,175.15,30.16742998]
[1730350073577,10.18472998,175.19,175.15,19.9827]
[1730350073768,10.18472998,175.21,175.15,30.16742998]
[1730350074080,80.18472998,175.22,175.16,10.18472998]
[1730350074575,10.18472998,175.21,175.16,10.18472998]
[1730350074978,10.18472998,175.21,175.17,5.7087]
[1730350076576,10.18472998,175.21,175.16,19.9816]
[1730350078087,10.18472998,175.2,175.16,19.9816]
[1730350078261,75.7071,175.22,175.16,19.9816]
[1730350078262,10.18472998,175.19,175.16,19.9816]
[1730350078571,10.18472998,175.19,175.16,14.2726]
[1730350081581,80.18472998,175.2,175.16,14.2726]
[1730350081787,10.18472998,175.19,175.16,14.2726]
[1730350081989,10.18472998,175.17,175.11,20.0]
[1730350082287,10.18472998,175.14,175.09,30.17432998]
[1730350083066,10.18472998,175.1,175.06,5.7121]
[1730350083488,10.18472998,175.09,175.06,5.7121]
[1730350083792,10.18472998,175.1,175.05,19.9939]
[1730350083962,10.18472998,175.09,175.05,19.9939]
[1730350085388,10.18472998,175.09,175.05,14.2813]
[1730350085566,16.49152998,175.11,175.06,10.18472998]
[1730350085892,10.18472998,175.1,175.05,30.17862998]
[1730350087163,16.49152998,175.11,175.05,30.17862998]
[1730350087778,16.49152998,175.11,175.06,10.18472998]
[1730350090274,16.49152998,175.11,175.06,19.9931]
[1730350091373,6.3068,175.11,175.07,10.18472998]
[1730350091573,86.0648,175.14,175.09,10.18472998]
[1730350091780,86.0648,175.14,175.1,10.18472998]
[1730350092288,10.18472998,175.11,175.06,10.18472998]
[1730350093273,10.18472998,175.11,175.07,5.712]
[1730350094389,96.24952998,175.14,175.08,10.18472998]
[1730350094691,10.18472998,175.12,175.07,30.17672998]
[1730350094888,10.18472998,175.11,175.07,19.992]
[1730350095193,10.18472998,175.12,175.07,30.17672998]
[1730350096397,10.18472998,175.13,175.08,10.18472998]
[1730350097981,10.18472998,175.13,175.08,15.89612998]
[1730350099376,101.95922998,175.14,175.08,15.89612998]
[1730350100498,10.18472998,175.13,175.08,15.89612998]
[1730350103206,10.18472998,175.13,175.07,10.18472998]
[1730350104785,10.18472998,175.13,175.08,5.7116]
[1730350106399,10.18472998,175.11,175.06,10.18472998]
[1730350106591,10.18472998,175.12,175.06,10.18472998]
[1730350107100,10.18472998,175.11,175.06,10.18472998]
[1730350107699,10.18472998,175.11,175.07,5.712]
[1730350108407,10.18472998,175.13,175.07,15.89672998]
[1730350108702,10.18472998,175.13,175.07,10.18472998]
[1730350108887,10.18472998,175.13,175.08,10.18472998]
[1730350109303,26.24952998,175.14,175.09,10.18472998]
[1730350110202,10.18472998,175.12,175.07,10.18472998]
[1730350111381,10.18472998,175.12,175.08,5.7116]
[1730350112090,80.18472998,175.13,175.08,5.7116]
[1730350112408,10.18472998,175.12,175.08,5.7116]
[1730350116110,85.89492998,175.13,175.08,5.7116]
[1730350116703,85.89492998,175.13,175.07,30.17642998]
[1730350120621,16.0648,175.14,175.1,10.18472998]
[1730350120920,16.0648,175.14,175.09,10.18472998]
[1730350121601,26.24952998,175.14,175.09,10.18472998]
[1730350122020,26.24952998,175.14,175.1,5.711]
[1730350123501,26.24952998,175.14,175.09,19.9896]
[1730350123708,10.18472998,175.13,175.09,19.9896]
[1730350123900,26.24952998,175.14,175.09,19.9896]
[1730350129421,80.18472998,175.13,175.09,14.2783]
[1730350129730,10.18472998,175.12,175.09,14.2783]
[1730350131007,85.89472998,175.13,175.09,14.2783]
[1730350132732,10.18472998,175.12,175.09,14.2783]
[1730350132908,80.18472998,175.1,175.03,10.18472998]
[1730350133112,10.18472998,175.09,175.03,10.18472998]
[1730350133307,10.18472998,175.09,175.03,30.18112998]
[1730350133508,80.18472998,175.1,175.04,10.18472998]
[1730350134311,85.89592998,175.1,175.04,15.89762998]
[1730350134813,10.18472998,175.09,175.04,15.89762998]
[1730350135016,80.18472998,175.1,175.05,10.18472998]
[1730350137325,80.18472998,175.1,175.05,15.89702998]
[1730350138640,80.18472998,175.1,175.05,30.17862998]
[1730350141334,70.0,175.1,175.05,30.17862998]
[1730350142109,10.18472998,175.09,175.05,19.9939]
[1730350143058,80.18472998,175.1,175.05,19.9939]
[1730350143737,10.18472998,175.11,175.06,10.18472998]
[1730350143915,70.0,175.12,175.07,10.18472998]
[1730350144118,10.18472998,175.11,175.06,10.18472998]
[1730350144538,10.18472998,175.11,175.05,30.17862998]
[1730350145556,10.18472998,175.11,175.06,10.18472998]
[1730350147070,10.18472998,175.11,175.07,5.712]
[1730350147423,10.18472998,175.11,175.07,19.992]
[1730350149262,10.18472998,175.1,175.07,19.992]
[1730350150133,10.18472998,175.11,175.07,19.992]
[1730350150567,10.18472998,175.11,175.07,14.28]
[1730350152348,85.89512998,175.12,175.06,10.18472998]
[1730350152861,10.18472998,175.1,175.05,10.18472998]
[1730350153629,10.18472998,175.1,175.06,5.7123]
[1730350154056,10.18472998,175.09,175.06,5.7123]
[1730350154552,80.18472998,175.1,175.06,5.7123]
[1730350154932,10.18472998,175.09,175.06,5.7123]
[1730350155532,10.18472998,175.09,175.05,19.9937]
[1730350155730,5.7109,175.11,175.05,30.17842998]
[1730350155731,10.18472998,175.11,175.05,30.17842998]
[1730350155929,80.18472998,175.12,175.06,10.18472998]
[1730350156735,85.89502998,175.12,175.06,10.18472998]
[1730350157139,10.18472998,175.11,175.06,10.18472998]
[1730350157947,10.18472998,175.11,175.06,15.89672998]
[1730350158150,10.18472998,175.11,175.06,5.712]
[1730350158461,10.18472998,175.1,175.06,5.712]
[1730350159058,10.18472998,175.1,175.05,19.9937]
[1730350160260,80.18472998,175.1,175.05,19.9937]
[1730350160566,10.18472998,175.11,175.06,10.18472998]
[1730350160857,96.24952998,175.14,175.08,30.17542998]
[1730350161057,10.18472998,175.13,175.08,19.9907]
[1730350161743,80.18472998,175.12,175.08,19.9907]
[1730350161929,10.18472998,175.11,175.08,14.2791]
[1730350163442,85.89522998,175.12,175.08,14.2791]
[1730350164457,85.89522998,175.12,175.07,10.18472998]
[1730350164869,10.18472998,175.13,175.08,10.18472998]
[1730350165155,0.99393386,175.17,175.02,48.5657]
[1730350165156,80.18472998,175.16,175.11,10.18472998]
[1730350165746,10.18472998,175.14,175.09,10.18472998]
[1730350165935,80.18472998,175.16,175.11,10.18472998]
[1730350166660,10.18472998,175.16,175.11,15.89522998]
[1730350166837,10.18472998,175.17,175.11,30.17192998]
[1730350167033,10.18472998,175.17,175.12,10.18472998]
[1730350167866,96.27722998,175.18,175.13,10.18472998]
[1730350168038,96.27722998,175.18,175.13,15.89462998]
[1730350169443,10.18472998,175.17,175.13,5.7099]
[1730350170946,6.1718,175.19,175.13,5.7099]
[1730350171158,10.18472998,175.17,175.13,5.7099]
[1730350174958,10.18472998,175.16,175.11,10.18472998]
[1730350175352,10.18472998,175.17,175.11,10.18472998]
[1730350175662,10.18472998,175.17,175.12,10.18472998]
[1730350176254,10.18472998,175.16,175.11,24.46072998]
[1730350176459,10.18472998,175.15,175.11,14.276]
[1730350176969,10.18472998,175.15,175.11,19.9866]
[1730350181850,10.18472998,175.16,175.11,19.9866]
[1730350182876,10.18472998,175.16,175.11,10.18472998]
[1730350183056,15.89312998,175.18,175.13,10.18472998]
[1730350183573,10.18472998,175.17,175.12,10.18472998]
[1730350184272,10.18472998,175.17,175.13,5.71]
[1730350185773,10.18472998,175.16,175.12,19.9862]
[1730350186457,10.18472998,175.16,175.12,14.2759]
[1730350188367,10.18472998,175.15,175.12,14.2759]
[1730350188560,75.7087,175.17,175.12,14.2759]
[1730350188561,10.18472998,175.16,175.12,14.2759]
[1730350189267,80.18472998,175.17,175.12,14.2759]
[1730350189567,85.89342998,175.17,175.12,14.2759]
[1730350191072,10.18472998,175.16,175.12,19.9862]
[1730350191373,10.18472998,175.14,175.09,30.17432998]
[1730350192462,10.18472998,175.14,175.09,19.9896]
[1730350193665,10.18472998,175.14,175.09,30.17432998]
[1730350196980,85.89412998,175.15,175.09,30.17432998]
[1730350197865,10.18472998,175.16,175.11,10.18472998]
[1730350198063,85.89372998,175.17,175.12,10.18472998]
[1730350198267,10.18472998,175.16,175.11,10.18472998]
[1730350199061,10.18472998,175.16,175.1,10.18472998]
[1730350199284,10.18472998,175.16,175.11,19.9873]
[1730350199584,10.18472998,175.16,175.11,30.17202998]
[1730350200384,10.18472998,175.17,175.11,30.17202998]
[1730350201183,6.1718,175.19,175.14,10.18472998]
[1730350201380,16.35652998,175.19,175.14,10.18472998]
[1730350201692,16.35652998,175.19,175.13,10.18472998]
[1730350202185,10.18472998,175.18,175.14,5.7097]
[1730350202774,16.35652998,175.19,175.14,30.16862998]
[1730350202970,16.35652998,175.19,175.14,19.9839]
[1730350203180,10.18472998,175.18,175.14,19.9839]
[1730350205365,10.18472998,175.15,175.1,10.18472998]
[1730350205683,10.18472998,175.15,175.09,30.17432998]
[1730350205988,10.18472998,175.15,175.1,10.18472998]
[1730350206980,76.1718,175.19,175.14,10.18472998]
[1730350207193,92.06472998,175.19,175.14,10.18472998]
[1730350207364,22.06472998,175.19,175.14,10.18472998]
[1730350207878,10.18472998,175.18,175.13,10.18472998]
[1730350208122,10.18472998,175.18,175.13,15.89452998]
[1730350209371,10.18472998,175.17,175.12,10.18472998]
[1730350209573,81.88,175.19,175.11,10.18472998]
[1730350209574,10.18472998,175.16,175.11,10.18472998]
[1730350210092,10.18472998,175.16,175.1,24.46222998]
[1730350210504,10.18472998,175.16,175.11,10.18472998]
[1730350210785,10.18472998,175.16,175.11,15.89532998]
[1730350215491,85.89352998,175.17,175.11,15.89532998]
[1730350217794,15.89352998,175.17,175.11,30.17202998]
[1730350217979,10.18472998,175.16,175.11,19.9873]
[1730350223067,10.18472998,175.16,175.11,10.18472998]
[1730350223488,15.89352998,175.17,175.11,10.18472998]
[1730350224591,15.89352998,175.17,175.12,5.7103]
[1730350226675,10.18472998,175.16,175.12,5.7103]
[1730350226988,10.18472998,175.15,175.11,19.9871]
[1730350229092,10.18472998,175.14,175.11,14.2765]
[1730350232101,10.18472998,175.15,175.11,14.2765]
[1730350234387,15.89372998,175.16,175.1,10.18472998]
[1730350235687,15.89372998,175.16,175.11,5.7106]
[1730350235890,10.18472998,175.15,175.11,5.7106]
[1730350238403,10.18472998,175.14,175.09,10.18472998]
[1730350238707,10.18472998,175.15,175.09,10.18472998]
[1730350239092,15.89372998,175.16,175.1,10.18472998]
[1730350239513,10.18472998,175.15,175.09,10.18472998]
[1730350240503,15.89372998,175.16,175.1,10.18472998]
[1730350240802,15.89372998,175.16,175.11,5.7106]
[1730350244310,10.18472998,175.17,175.11,30.17202998]
[1730350244499,15.89332998,175.18,175.12,10.18472998]
[1730350247206,10.18472998,175.19,175.14,10.18472998]
[1730350247594,10.18472998,175.18,175.13,10.18472998]
[1730350249106,10.18472998,175.18,175.14,19.9839]
[1730350250024,10.18472998,175.18,175.14,14.2742]
[1730350250312,10.18472998,175.16,175.11,10.18472998]
[1730350250619,10.18472998,175.16,175.11,19.9873]
[1730350253216,10.18472998,175.15,175.11,19.9873]
[1730350253515,10.18472998,175.16,175.11,19.9873]
[1730350254120,10.18472998,175.16,175.11,30.17202998]
[1730350255214,10.18472998,175.17,175.11,30.17202998]
[1730350258020,10.18472998,175.16,175.11,30.17202998]
[1730350258203,10.18472998,175.16,175.1,10.18472998]
[1730350258392,10.18472998,175.17,175.11,10.18472998]
[1730350259692,10.18472998,175.15,175.1,10.18472998]
[1730350259920,10.18472998,175.16,175.1,10.18472998]
[1730350260921,10.18472998,175.16,175.11,19.9873]
[1730350261502,10.18472998,175.17,175.11,30.17202998]
[1730350262100,15.89312998,175.18,175.12,10.18472998]
[1730350262920,15.89312998,175.18,175.13,10.18472998]
[1730350263423,15.89312998,175.18,175.12,10.18472998]
[1730350263721,16.33522998,175.19,175.14,10.18472998]
[1730350264524,6.1505,175.19,175.15,10.18472998]
[1730350264820,6.1505,175.19,175.16,5.709]
[1730350265402,16.33522998,175.19,175.16,5.709]
[1730350265819,16.33522998,175.19,175.14,14.2735]
[1730350265994,10.18472998,175.18,175.14,19.9832]
[1730350267619,16.33522998,175.19,175.14,30.16792998]
[1730350268134,6.1505,175.19,175.14,30.16792998]
[1730350268299,16.33522998,175.19,175.14,30.16792998]
[1730350268898,6.1505,175.19,175.14,30.16792998]
[1730350270104,6.1505,175.19,175.15,10.18472998]
[1730350270505,6.1505,175.19,175.15,15.89392998]
[1730350275735,16.2903,175.2,175.16,10.18472998]
[1730350276820,10.18472998,175.21,175.16,10.18472998]
[1730350277021,15.89192998,175.22,175.17,10.18472998]
[1730350277916,92.32512998,175.23,175.18,15.89312998]
[1730350278123,22.32512998,175.23,175.18,15.89312998]
[1730350278327,10.18472998,175.26,175.21,10.18472998]
[1730350278661,6.1937,175.28,175.25,10.18472998]
[1730350278929,10.18472998,175.41,175.26,10.18472998]
[1730350278930,16.88189992,175.31,175.26,10.18472998]
[1730350279104,10.18472998,175.31,175.18,20.1794]
[1730350279304,43.31333823,175.33,175.28,10.18472998]
[1730350279519,37.51752998,175.33,175.28,10.18472998]
[1730350279714,21.6293,175.33,175.29,10.18472998]
[1730350279932,23.88961763,175.35,175.29,10.18472998]
[1730350280308,10.18472998,175.34,175.29,10.18472998]
[1730350280505,10.18472998,175.33,175.28,10.18472998]
[1730350281809,86.37842998,175.37,175.32,10.18472998]
[1730350282006,6.1937,175.37,175.33,10.18472998]
[1730350283730,80.18472998,175.39,175.34,10.18472998]